{"text_format":"1","workbook":"xlsx","n_sheets":8,"sheets":["Prompt","C100","C200","C300","C400","C500","C600","Enviar"],"not_rendered":{"charts":0,"images":6,"macros":1,"external_links":0,"defined_names":1,"comments":0,"pivot_tables":0},"unopened":[],"bounds":{"document_bytes":16777216,"sheet_cells":100000,"rows_first":2000,"rows_last":500,"rows_between":2000,"halvings":0,"cell_chars":16384,"cell_head_chars":4096},"cells_cut":0,"cells_raw":0,"read":"whole","date_system":"1900"}

{"sheet":"Prompt","index":0,"n_rows":79,"n_cols":4,"rows_kept":79,"cut":false,"hidden":true,"merged":[[1,3,2,6],[4,1,6,8],[43,1,44,8],[78,1,79,8],[9,1,10,8]]}
[]
[null,null,null,"¡ATENCIÓN!"]
[]
[]
[null,"Para hacer uso de las funcionalidades de esta Cédula Electrónica debe habilitar macros"]
[]
[]
[]
[]
[null,"Si utiliza Excel 2013 siga el siguiente procedimiento:"]
[]
[]
[]
[]
[]
[]
[]
[]
[]
[]
[]
[]
[]
[]
[]
[]
[]
[]
[]
[]
[]
[]
[]
[]
[]
[]
[]
[]
[]
[]
[]
[]
[]
[null,"Si utiliza Excel 2007 siga el siguiente procedimiento:"]
[]
[]
[]
[]
[]
[]
[]
[]
[]
[]
[]
[]
[]
[]
[]
[]
[]
[]
[]
[]
[]
[]
[]
[]
[]
[]
[]
[]
[]
[]
[]
[]
[]
[]
[null,"Si utiliza Excel 2000, 2002, 2003 siga el siguiente procedimiento:"]

{"sheet":"C100","index":1,"n_rows":116,"n_cols":23,"rows_kept":116,"cut":false,"hidden":false,"merged":[[104,9,106,9],[104,10,106,11],[99,1,100,21],[28,5,28,20],[30,16,30,20],[95,17,95,21],[94,17,94,21],[49,5,49,9],[1,4,1,19],[2,4,2,19],[3,4,3,19],[1,20,1,21],[2,20,3,21],[23,1,23,22],[26,5,26,7],[26,19,26,20],[37,1,37,22],[30,5,30,12]]}
[]
[null,null,null,null,"CENSO EDUCATIVO 2025",null,null,null,null,null,null,null,null,null,null,null,null,null,null,null,"CÉDULA"]
[null,null,null,null,"EDUCACIÓN BÁSICA ESPECIAL - INICIAL",null,null,null,null,null,null,null,null,null,null,null,null,null,null,null,"8A"]
[null,null,null,null,"NO ESCOLARIZADA"]
[null,"Versión :",null,"GA - 1.0"]
[null,"INSTRUCCIONES DEL FORMATO ELECTRÓNICO "]
[]
[]
[]
[]
[]
[]
[]
[]
[]
[]
[]
[]
[]
[]
[]
[]
[]
[null,"IDENTIFICACIÓN DEL SERVICIO EDUCATIVO"]
[]
[]
[null,"1. CÓDIGO MODULAR :",null,null,null,null,null,null,null,null,null,null,null,null,null,null,null,"2. CÓDIGO DE LOCAL EDUCATIVO :"]
[]
[null,"3. NOMBRE DEL SERVICIO :",null,null,null,""]
[]
[null,"4. DISTRITO :",null,null,null,null,null,null,null,null,null,null,null,null,"LOCALIDAD :"]
[]
[]
[]
[null,"GESTIÓN DE LA INSTITUCIÓN EDUCATIVA :",null,null,null,null,null,null,""," 1 - Pública de gestión directa",null,null,null,""," 2 - Pública de gestión privada",null,null,null,null," 3 - Privada"]
[]
[]
[null,"100. CARACTERÍSTICAS DEL SERVICIO EDUCATIVO"]
[]
[null,"101. EN LOS ÚLTIMOS TRES MESES, ¿QUÉ PROGRAMAS O CAMPAÑAS DE SALUD ",null,null,null,null,null,null,null,null,null,null,"103. EL SERVICIO/NIVEL EDUCATIVO CONSIDERA 7 ASPECTOS COMO MÍNIMO"]
[null,null,"SE OFRECIERON A LOS ESTUDIANTES EN ESTE SERVICIO/NIVEL EDUCATIVO?",null,null,null,null,null,null,null,null,null,null,"EN SU ESTRUCTURA DEL DOCUMENTO DE GESTIÓN?"]
[]
[null,null,"Marque con una “X”, una o más opciones",null,null,null,null,null,null,null,null,null,null,"Sí  ","",null,null,"No  "]
[]
[null,null,null,null,"Cuna más"]
[null,null,null,null,"Vacunación",null,null,null,null,null,null,null,null,null,"Marque con una “X”, una o más opciones"]
[null,null,null,null,"Control de Crecimiento y Desarrollo"]
[null,null,null,null,"Despistaje de anemia",null,null,null,null,null,null,null,null,null,"","Identidad"]
[null,null,null,null,"Wasi Mikuna",null,null,null,null,null,null,null,null,null,"","Diagnóstico de la gestión escolar"]
[null,null,null,"","Otro","",null,null,null,null,null,null,null,null,"","Las normas de convivencia"]
[null,null,null,"","Ninguno",null,null,null,null,null,null,null,null,null,"","Plan de estudios"]
[null,null,null,null,null,null,null,null,null,null,null,null,null,null,"","Lineamientos pedagógicos"]
[null,"102. ¿EL SERVICIO/NIVEL EDUCATIVO CUENTA CON DOCUMENTO DE GESTIÓN?",null,null,null,null,null,null,null,null,null,null,null,null,"","Programación de actividades"]
[null,null,null,null,null,null,null,null,null,null,null,null,null,null,"","Calendarización",null,""]
[null,null,"Sí  ",null,null,null,"No  ","",null,"Pase a la pregunta 104"]
[]
[]
[]
[]
[]
[]
[]
[]
[]
[]
[]
[]
[]
[]
[]
[]
[]
[]
[]
[]
[]
[]
[]
[]
[]
[]
[]
[null,"ACOMPAÑAMIENTO Y SOPORTE PEDAGÓGICO"]
[null,"104. DESDE EL INICIO DEL AÑO LECTIVO HASTA LA FECHA DE LA APLICACIÓN DEL",null,null,null,null,null,null,null,null,null,null,"105. DURANTE EL AÑO 2024 Y HASTA LA FECHA DE APLICACIÓN DEL CENSO"]
[null,null,"CENSO EDUCATIVO 2025, ESTE SERVICIO/NIVEL EDUCATIVO, ¿HA RECIBIDO",null,null,null,null,null,null,null,null,null,null,"EDUCATIVO 2025, EL SERVICIO/NIVEL EDUCATIVO, ¿HA RECIBIDO ALGÚN "]
[null,null,"ASISTENCIA TÉCNICA PRESENCIAL O VIRTUAL DEL ESPECIALISTA PEDAGÓGICO ",null,null,null,null,null,null,null,null,null,null,"TIPO DE ACOMPAÑAMIENTO DIRIGIDO AL DIRECTIVO?"]
[null,null,"DE LA UGEL?"]
[null,null,null,null,null,null,null,null,null,null,null,null,null,"Sí","",null,null," No  "]
[]
[null,null,"Sí","",null,null," No  ",null,null,null,null,null,null,null,null,"¿Que Institución le brindó el acompañamiento?"]
[null,null,null,null,null,null,null,null,null,null,null,null,null,null,null,"Marque con una “X” una o más opciones"]
[]
[null,null,null,null,null,null,null,null,null,null,null,null,null,null,"","DRE/GRE"]
[null,null,null,null,null,null,null,null,null,null,null,null,null,null,"","UGEL"]
[null,null,null,null,null,null,null,null,null,null,null,null,null,null,"","MINEDU",null,""]
[null,null,null,null,null,null,null,null,null,null,null,null,null,null,"","OTROS",null,""]
[]
[]
[null,"SERVICIOS CON PERTINENCIA CULTURAL (GESTIÓN PÚBLICA Y PRIVADA)"]
[null,"Para atender esta sección, es importante que usted Señor(a) director(a), tenga presente los \"Lineamientos para la generación de servicios con pertinencia cultural a través de la incorporación de la variable étnica en entidades públicas\", aprobados mediante Decreto Supremo N° 010-2021-MC; de aplicación obligatoria para las entidades de la administración pública.",null,null,null,null,null,null,null,null,null,null,null,null,null,null,null,null,null,null,null,null,"SI"]
[null,null,null,null,null,null,null,null,null,null,null,null,null,null,null,null,null,null,null,null,null,null,"NO"]
[null,"106. DE ACUERDO CON LAS PRACTICAS COTIDIANAS Y COSTUMBRES, ¿USTED CONSIDERA QUE SU SERVICIO/NIVEL EDUCATIVO CUENTA CON ESTUDIANTES"]
[null,null,"PERTENECIENTES A LOS SIGUIENTES GRUPOS ÉTNICOS?"]
[]
[null,null,null,null,null,null,null,null,null,"¿Tiene estudiantes?","Solo si respondió “Sí” % estimado del total de estudiantes",null,null,"Para cada grupo étnico, seleccione (SI o NO) en la columna correspondiente y,"]
[null,null,null,null,"GRUPO ÉTNICO",null,null,null,null,null,null,null,null,"si le es posible, estime el porcentaje de estudiantes que pertenecen a ese grupo"]
[null,null,null,null,null,null,null,null,{"$f":"COUNTIF(J108:J115,\"SI\")+COUNTIF(J108:J115,\"NO\")","v":0},null,null,null,null,"en relación con el total de estudiantes."]
[null,null,1,"Quechua",null,null,null,null,null,null,null,"%"]
[null,null,2,"Aimara",null,null,null,null,null,null,null,"%"]
[null,null,3,"Indígena u originario de la Amazonía",null,null,null,null,null,null,null,"%"]
[null,null,4,"Perteneciente o parte de otro pueblo\nindígena",null,null,null,null,null,null,null,"%"]
[null,null,5,"Negro moreno, zambo, mulato o afro-\nperuano",null,null,null,null,null,null,null,"%"]
[null,null,6,"Blanco",null,null,null,null,null,null,null,"%"]
[null,null,7,"Mestizo",null,null,null,null,null,null,null,"%"]
[null,null,8,"Otros",null,null,null,null,null,null,null,"%"]
[null,null,null,null,null,null,null,null,null,null,{"$f":"SUM(K108:K115)","v":0}]

{"sheet":"C200","index":2,"n_rows":66,"n_cols":34,"rows_kept":66,"cut":false,"hidden":false,"merged":[[2,5,2,19],[1,5,1,19],[43,9,44,10],[43,11,43,16],[44,11,44,12],[44,13,44,14],[44,15,44,16],[26,4,28,5],[33,2,33,3],[34,2,34,3],[43,2,45,8],[60,5,61,6],[41,4,41,16],[26,22,28,23],[26,24,26,33],[27,6,27,7],[27,14,27,15],[27,16,27,17],[27,18,27,19],[27,20,27,21],[27,24,27,25],[27,26,27,27],[27,28,27,29],[27,30,27,31],[27,32,27,33],[28,32,28,33],[12,32,12,33],[15,2,15,3],[16,2,16,3],[17,2,17,3],[11,18,11,19],[11,20,11,21],[10,22,12,23],[10,24,10,33],[11,6,11,7],[11,16,11,17],[11,24,11,25],[11,26,11,27],[11,28,11,29],[11,30,11,31],[11,32,11,33],[62,2,62,4],[11,14,11,15],[11,10,11,11],[11,8,11,9],[27,8,27,9],[27,12,27,13],[27,10,27,11],[10,2,13,3],[10,4,12,5],[18,2,18,3],[26,2,29,3],[60,7,60,10],[60,2,61,4],[11,12,11,13],[31,2,31,3],[32,2,32,3]]}
[]
[null,null,null,null,null,"CENSO EDUCATIVO 2025"]
[null,null,null,null,null,"MATRÍCULA, DOCENTES Y RECURSOS"]
[]
[]
[]
[null,null,"200. MATRÍCULA Y SECCIONES"]
[]
[null,null,201,null,"MATRÍCULA EN PRITE POR EDAD ATENDIDA Y SEXO, SEGÚN TIPO DE DISCAPACIDAD U OTRA CONDICIÓN"]
[]
[null,null,"EDAD ATENDIDA EN AÑOS CUMPLIDOS",null,"TOTAL",null,"TIPO DE DISCAPACIDAD U OTRA CONDICIÓN",null,null,null,null,null,null,null,null,null,null,null,null,null,null,null,"TOTAL",null,"DOCUMENTO DE EVIDENCIA"]
[null,null,null,null,null,null,"DISCAPACIDAD INTELECTUAL",null,"DISCAPACIDAD AUDITIVA",null,"DISCAPACIDAD VISUAL",null,"DISCAPACIDAD FÍSICA O MOTORA",null,"TRANSTORNO DEL ESPECTRO AUTISTA (TEA)",null,"SORDO CEGUERA",null,"NIÑAS Y NIÑOS DE ALTO RIESGO",null,"OTRA",null,null,null,"CERTIFICADO DE DISCAPACIDAD",null,"INFORME O CERTIFICADO MÉDICO DE PROFESIONAL O INSTITUCIÓN",null,"CARNÉ DE CONADIS",null,"COPIA SIMPLE DE LA RESOLUCIÓN DE DISCAPACIDAD",null,"DECLARACIÓN JURADA"]
[null,null,null,null,null,null,"Intelectual",null,"Auditiva",null,"Visual",null,"Física o motora",null,"TEA",null,"Sordo ceguera",null,"Alto riesgo",null,"Otra",null,null,null,"CERTIFICADO",null,"INFORME",null,"CARNÉ DE CONADIS",null,"RESOLUCIÓN",null,"DECLARACIÓN JURADA"]
[null,null,null,null,"H","M","H","M","H","M","H","M","H","M","H","M","H","M","H","M","H","M","H","M","H","M","H","M","H","M","H","M","H","M"]
["00",null,"TOTAL",null,{"$f":"SUM(E16:E19)","v":0},0,0,0,0,0,0,0,0,0,0,0,0,0,0,0,0,0,0,0,0,0,0,0,0,0,0,0,0,0]
["01",null,0,null,{"$f":"G16+I16+K16+M16+O16+Q16+S16+U16","v":0},0,null,null,null,null,null,null,null,null,null,null,null,null,null,null,null,null,{"$f":"Y16+AA16+AC16+AE16+AG16","v":0},{"$f":"Z16+AB16+AD16+AF16+AH16","v":0}]
["02",null,1,null,0,0,null,null,null,null,null,null,null,null,null,null,null,null,null,null,null,null,{"$f":"Y17+AA17+AC17+AE17+AG17","v":0},0]
["03",null,2,null,0,0,null,null,null,null,null,null,null,null,null,null,null,null,null,null,null,null,0,0]
["04",null,"3 y más",null,0,0,null,null,null,null,null,null,null,null,null,null,null,null,null,null,null,null,0,0]
[]
[]
[]
[]
[]
[null,null,202,null,"MATRÍCULA DE NIÑAS Y NIÑOS EN OTROS PROGRAMAS (CICLO I EBR) Y SON ATENDIDOS EN EL PRITE POR EDAD ATENDIDA Y SEXO, SEGÚN TIPO DE DISCAPACIDAD U OTRA CONDICIÓN"]
[]
[null,null,"SECCIÓN O GRUPO DE EDAD ATENDIDA",null,"TOTAL",null,"TIPO DE DISCAPACIDAD U OTRA CONDICIÓN",null,null,null,null,null,null,null,null,null,null,null,null,null,null,null,"TOTAL",null,"DOCUMENTO DE EVIDENCIA"]
[null,null,null,null,null,null,"DISCAPACIDAD INTELECTUAL",null,"DISCAPACIDAD AUDITIVA",null,"DISCAPACIDAD VISUAL",null,"DISCAPACIDAD FÍSICA O MOTORA",null,"TRANSTORNO DEL ESPECTRO AUTISTA (TEA)",null,"SORDO CEGUERA",null,"NIÑAS Y NIÑOS DE ALTO RIESGO",null,"OTRA",null,null,null,"CERTIFICADO DE DISCAPACIDAD",null,"INFORME O CERTIFICADO MÉDICO DE PROFESIONAL O INSTITUCIÓN",null,"CARNÉ DE CONADIS",null,"COPIA SIMPLE DE LA RESOLUCIÓN DE DISCAPACIDAD",null,"DECLARACIÓN JURADA"]
[null,null,null,null,null,null,"Intelectual",null,"Auditiva",null,"Visual",null,"Física o motora",null,"TEA",null,"Sordo ceguera",null,"Alto riesgo",null,"Otra",null,null,null,"CERTIFICADO",null,"INFORME",null,"CARNÉ DE CONADIS",null,"RESOLUCIÓN",null,"DECLARACIÓN JURADA"]
[null,null,null,null,"H","M","H","M","H","M","H","M","H","M","H","M","H","M","H","M","H","M","H","M","H","M","H","M","H","M","H","M","H","M"]
["00",null,"TOTAL",null,{"$f":"SUM(E32:E35)","v":0},0,0,0,0,0,0,0,0,0,0,0,0,0,0,0,0,0,0,0,0,0,0,0,0,0,0,0,0,0]
["01",null,0,null,{"$f":"G32+I32+K32+M32+O32+Q32+S32+U32","v":0},0,null,null,null,null,null,null,null,null,null,null,null,null,null,null,null,null,{"$f":"Y32+AA32+AC32+AE32+AG32","v":0},{"$f":"Z32+AB32+AD32+AF32+AH32","v":0}]
["02",null,1,null,0,0,null,null,null,null,null,null,null,null,null,null,null,null,null,null,null,null,{"$f":"Y33+AA33+AC33+AE33+AG33","v":0},{"$f":"Z33+AB33+AD33+AF33+AH33","v":0}]
["03",null,2,null,0,0,null,null,null,null,null,null,null,null,null,null,null,null,null,null,null,null,0,0]
["04",null,"3 y más",null,0,0,null,null,null,null,null,null,null,null,null,null,null,null,null,null,null,null,0,0]
[]
[]
[]
[]
[]
[]
[null,null,203,null,"MATRÍCULA EN PRITE QUE SE ENCUENTREN EN SITUACIÓN DE HOSPITALIZACIÓN AL MOMENTO DEL REPORTE DEL CENSO EDUCATIVO 2025, SEGÚN TIPO DE DISCAPACIDAD U OTRA CONDICIÓN"]
[]
[null,null,"TIPO DE DISCAPACIDAD U OTRA CONDICIÓN",null,null,null,null,null,null,"TOTAL",null,"Estudiantes en situación de hospitalización"]
[null,null,null,null,null,null,null,null,null,null,null,"Menos de 15 días de hospitalización",null,"De 15 a 30 días de hospitalización",null,"Más de 30 días de hospitalización"]
[null,null,null,null,null,null,null,null,null,"H","M","H","M","H","M","H","M"]
["00",null,"TOTAL",null,null,null,null,null,null,{"$f":"SUM(J48:J58)","v":0},{"$f":"SUM(K48:K58)","v":0},{"$f":"SUM(L48:L56)","v":0},0,0,0,0,0]
["01",null,"DISCAPACIDAD INTELECTUAL",null,null,null,null,null,null,{"$f":"L48+N48+P48","v":0},{"$f":"M48+O48+Q48","v":0},null,null,null,null,null,null,null,{"$f":"G15","v":0},{"$f":"H15","v":0}]
["02",null,"DISCAPACIDAD AUDITIVA",null,null,null,null,null,null,{"$f":"L49+N49+P49","v":0},{"$f":"M49+O49+Q49","v":0},null,null,null,null,null,null,null,{"$f":"I15","v":0},{"$f":"J15","v":0}]
["03",null,"DISCAPACIDAD VISUAL",null,null,null,null,null,null,{"$f":"L50+N50+P50","v":0},0,null,null,null,null,null,null,null,{"$f":"K15","v":0},{"$f":"L15","v":0}]
["04",null,"DISCAPACIDAD FÍSICA O MOTORA",null,null,null,null,null,null,0,0,null,null,null,null,null,null,null,{"$f":"M15","v":0},{"$f":"N15","v":0}]
["05",null,"TRASTORNO DEL ESPECTRO AUTISTA (TEA)",null,null,null,null,null,null,0,0,null,null,null,null,null,null,null,{"$f":"O15","v":0},{"$f":"P15","v":0}]
["06",null,"SORDOCEGUERA",null,null,null,null,null,null,0,0,null,null,null,null,null,null,null,{"$f":"Q15","v":0},{"$f":"R15","v":0}]
["07",null,"NIÑAS Y NIÑOS DE ALTO RIESGO",null,null,null,null,null,null,0,0,null,null,null,null,null,null,null,{"$f":"S15","v":0},{"$f":"T15","v":0}]
["08",null,"OTRA (OTRA DISCAPACIDAD U OTRA CONDICIÓN)",null,null,null,null,null,null,0,0,null,null,null,null,null,null,null,{"$f":"U15","v":0},{"$f":"V15","v":0}]
[]
[]
[]
[null,null,204,"NÚMERO TOTAL DE SECCIONES EN PRITE, POR AÑO ATENDIDO, SEGÚN TURNO"]
[]
[null,null,"TURNO",null,null,"TOTAL\nSECCIONES",null,"AÑO ATENDIDO"]
[null,null,null,null,null,null,null,0,1,2,"3 y +"]
["00",null,"TOTAL",null,null,{"$f":"SUM(H63:K63)","v":0},null,{"$f":"SUM(H64:H65)","v":0},{"$f":"SUM(I64:I65)","v":0},{"$f":"SUM(J64:J65)","v":0},{"$f":"SUM(K64:K65)","v":0}]
["01",null,"Mañana",null,null,{"$f":"SUM(H64:K64)","v":0}]
["02",null,"Tarde",null,null,{"$f":"SUM(H65:K65)","v":0}]
[null,null,null,null,null,null,null,{"$f":"E32+F32","v":0},{"$f":"E33+F33","v":0},{"$f":"E34+F34","v":0},{"$f":"E35+F35","v":0}]

{"sheet":"C300","index":3,"n_rows":184,"n_cols":48,"rows_kept":184,"cut":false,"hidden":false,"merged":[[12,26,12,27],[15,27,17,27],[15,24,17,24],[15,28,17,28],[15,31,17,31],[15,26,17,26],[15,25,17,25],[15,35,17,35],[15,29,17,29],[15,33,17,33],[15,30,17,30],[15,32,17,32],[15,34,16,34],[6,10,6,23],[15,23,17,23],[15,10,17,10],[15,18,17,18],[15,22,17,22],[15,19,17,19],[14,14,14,15],[15,14,15,15],[15,20,17,20],[15,11,17,11],[15,12,17,12],[15,13,17,13],[15,16,17,16],[15,17,17,17],[7,10,7,23],[15,21,17,21]]}
[]
[null,null,null,null,null,null,null,null,null,null,null,null,"CENSO EDUCATIVO 2025"]
[null,null,null,null,null,null,null,null,null,null,null,null,"MATRÍCULA, DOCENTES Y RECURSOS"]
[]
["PERSONAL",{"$f":"Q10+U10+W10","v":0}]
[]
["DOCENTES",{"$f":"COUNTIF(Q19:Q118,\"01: Docente\")","v":0},null,null,null,null,null,null,null,null,"300. PERSONAL DOCENTE, NO DOCENTE Y ADMINISTRATIVO"]
["NO DOCENTES",{"$f":"COUNTIF(Q19:Q118,\"04: No Docente\")","v":0},null,null,null,null,null,null,null,null,"En esta tabla, REGISTRE a todo el personal docente, no docente y personal administrativo que se encuentre laborando en el servicio/nivel educa vo durante el periodo de reporte del censo educativo.\n(EXCLUYA al personal que se encuentre haciendo uso de licencia y a los que han sido destacados a otra IE/DRE/UGEL)"]
["ADMINISTRATIVOS",{"$f":"COUNTIF(Q19:Q118,\"02: Administrativo\")","v":0}]
[null,null,null,null,null,null,null,null,null,null,null,null,"TOTAL PROFESIONALES :  ",{"$f":"Q10+U10","v":0},null,"DOCENTES :  ",null,null,null,"NO DOCENTES :  ",null,"ADMINISTRATIVOS :  "]
["DOCENTES CON SECCIÓN",{"$f":"COUNTIF(AH19:AH118,\"SI\")","v":0}]
[null,{"$f":"B7+B8+B9","v":0},null,null,null,null,null,null,null,null,"El “Total Profesionales”, considera a todo el personal que cumplen funciones en el Servicio educativo: Directoras(res), Docentes, coordinadoras(res), responsables del PRITE con o sin aula a cargo y administrativos."]
["LENGUA ORIGINARIA",{"$f":"COUNTIF(U19:U118,\"SI\")","v":0},null,null,null,null,null,null,null,null,"Documentos fuente: Legajo de personal y CAP de la Institución Educativa."]
[1,2,3,4,5,6,7,8]
[null,null,null,null,null,null,null,null,null,null,null,301.10000000000002,301.2,301.3,302,null,303,304,305,306,307,308,309,310,311,312,313,314,315,316,317,318,319,320,321,322]
["GESTIÓN",{"$f":"IF(OR(UPPER('C100'!I35)=\"X\",UPPER('C100'!N35)=\"X\"),1,IF(UPPER('C100'!S35)=\"X\",3,\"\"))","v":""},null,null,null,null,null,null,null,null,"Nº","Apellido Paterno","Apellido Materno","Nombres","Documento de Identidad",null,"Tipo de\nPersonal","Edad","Sexo","Lengua\nmaterna","¿Domina una\nlengua\noriginaria?\nSí - No","Lengua originaria\nque domina","Fuente de\nfinanciamiento","Condición Laboral","Modalidad de Contrato","Máximo nivel\neducativo alcanzado","Especialidad Pedagógica\nque ha estudiado","¿En qué tipo de\ninstitución obtuvo su\nformación pedagógica?","Estudios de Postgrado en Pedagogía","Años de Experiencia Laboral","Años de\nexperiencia\nlaboral en\neste servicio/nivel\neducativo","Función o cargo","Situación en cargo directivo","¿Tiene secciones a cargo?","¿Presenta alguna discapacidad?","Solo si respondió Sí en la pregunta\n321 ¿Cúal es el tipo de discapacidad?"]
[null,null,"Exp1","Exp2","Exp3","Exp4","Exp5","Exp6",null,null,null,null,null,null,302.10000000000002,302.2]
["302.1 Tipo de documento de Identidad","314. Tipo de inst. donde estudio","Corr","Escala","Gest","Fun cion","Duplex","Fmt",null,null,null,null,null,null,"Tipo","Número",null,null,null,null,null,null,null,null,null,null,null,null,null,null,null,null,null,null,"Sí / No"]
["01: DNI.","01: IESP (Público)",1,{"$f":"IF(AND(LEFT(Q19,2)=\"01\",LEFT(W19,2)=\"01\",LEFT(X19,2)=\"01\",E19=1),1,0)","v":0},{"$f":"$B$16","v":""},{"$f":"IF(Q19<>\"\",VALUE(LEFT(Q19,2)),0)","v":0},{"$f":"IF(P19<>\"\",COUNTIF($P$19:$P$319,P19),0)","v":0},{"$f":"IF(K19<>\"\",1,0)","v":0},null,null,{"$f":"IF(C19<=$B$5,C19,\"\")","v":""},"","","","","","","","","","","","","","","","","","","","","","","","",""]
["02: Carnet Ext.","02: IESP (Privado)",2,{"$f":"IF(AND(LEFT(Q20,2)=\"01\",LEFT(W20,2)=\"01\",LEFT(X20,2)=\"01\",E20=1),1,0)","v":0},{"$f":"$B$16","v":""},{"$f":"IF(Q20<>\"\",VALUE(LEFT(Q20,2)),0)","v":0},{"$f":"IF(P20<>\"\",COUNTIF($P$19:$P$319,P20),0)","v":0},{"$f":"IF(K20<>\"\",1,0)","v":0},null,null,{"$f":"IF(C20<=$B$5,C20,\"\")","v":""},"","","","","","","","","","","","","","","","","","","","","","","","",""]
["03: Pasaporte","03: Universidad Privada",3,0,"",0,0,{"$f":"IF(K21<>\"\",1,0)","v":0},null,null,{"$f":"IF(C21<=$B$5,C21,\"\")","v":""},"","","","","","","","","","","","","","","","","","","","","","","","",""]
[null,"04: Universidad Pública",4,0,"",0,0,0,null,null,"","","","","","","","","","","","","","","","","","","","","","","","","","","","","","","","","","","","","",""]
["303. Tipo de Personal","05: EESP (Público)",5,0,"",0,0,0,null,null,"","","","","","","","","","","","","","","","","","","","","","","","","","","","","","","","","","","","","",""]
["01: Docente","06: EESP (Privado)",6,0,"",0,0,0,null,null,"","","","","","","","","","","","","","","","","","","","","","","","","","","","","","","","","","","","","",""]
["02: Administrativo","315. Segunda Especialidad",7,0,"",0,0,0,null,null,"","","","","","","","","","","","","","","","","","","","","","","","","","","","","","","","","","","","","",""]
["04: No Docente","Utilice las especialidades de la tabla de códigos 313.",8,0,"",0,0,0,null,null,"","","","","","","","","","","","","","","","","","","","","","","","","","","","","","","","","","","","","",""]
["03: Aux. de Educación","316. Estudios de Postgrado en Pedagogía",9,0,"",0,0,0,null,null,"","","","","","","","","","","","","","","","","","","","","","","","","","","","","","","","","","","","","",""]
[null,"Estudios de Maestría y doctorado",10,0,"",0,0,0,null,null,"","","","","","","","","","","","","","","","","","","","","","","","","","","","","","","","","","","","","",""]
["305. Sexo","01: Maestria concluida con grado",11,0,"",0,0,0,null,null,"","","","","","","","","","","","","","","","","","","","","","","","","","","","","","","","","","","","","",""]
["Hombre","02: Maestria concluida sin grado",12,0,"",0,0,0,null,null,"","","","","","","","","","","","","","","","","","","","","","","","","","","","","","","","","","","","","",""]
["Mujer","03: Maestria en proceso",13,0,"",0,0,0,null,null,"","","","","","","","","","","","","","","","","","","","","","","","","","","","","","","","","","","","","",""]
[null,"04: Doctorado concluido con grado",14,0,"",0,0,0,null,null,"","","","","","","","","","","","","","","","","","","","","","","","","","","","","","","","","","","","","",""]
["306. Lengua Materna","05: Doctorado concluido sin grado",15,0,"",0,0,0,null,null,"","","","","","","","","","","","","","","","","","","","","","","","","","","","","","","","","","","","","",""]
["0100: Castellano","06: Doctorado en proceso",16,0,"",0,0,0,null,null,"","","","","","","","","","","","","","","","","","","","","","","","","","","","","","","","","","","","","",""]
["0200: Achuar","07: Sin Postgrado",17,0,"",0,0,0,null,null,"","","","","","","","","","","","","","","","","","","","","","","","","","","","","","","","","","","","","",""]
["0300: Aimara",null,18,0,"",0,0,0,null,null,"","","","","","","","","","","","","","","","","","","","","","","","","","","","","","","","","","","","","",""]
["0400: Amahuaca",null,19,0,"",0,0,0,null,null,"","","","","","","","","","","","","","","","","","","","","","","","","","","","","","","","","","","","","",""]
["0500: Arabela","317. Tiempo de Servicio",20,0,"",0,0,0,null,null,"","","","","","","","","","","","","","","","","","","","","","","","","","","","","","","","","","","","","",""]
["0600: Asháninka","Solo personal Nombrado.",21,0,"",0,0,0,null,null,"","","","","","","","","","","","","","","","","","","","","","","","","","","","","","","","","","","","","",""]
["0610: Asheninka","Tiempo contado expresado en años desde su fecha de Nombramiento",22,0,"",0,0,0,null,null,"","","","","","","","","","","","","","","","","","","","","","","","","","","","","","","","","","","","","",""]
["0700: Awajún",null,23,0,"",0,0,0,null,null,"","","","","","","","","","","","","","","","","","","","","","","","","","","","","","","","","","","","","",""]
["0800: Bora","318. Años de Experiencia Laboral",24,0,"",0,0,0,null,null,"","","","","","","","","","","","","","","","","","","","","","","","","","","","","","","","","","","","","",""]
["0900: Kapanawa","Registre el total de años que tiene como experiencia",25,0,"",0,0,0,null,null,"","","","","","","","","","","","","","","","","","","","","","","","","","","","","","","","","","","","","",""]
["1000: Cashinahua","en el Tipo de Personal que se está registrando (Tabla 301.)",26,0,"",0,0,0,null,null,"","","","","","","","","","","","","","","","","","","","","","","","","","","","","","","","","","","","","",""]
["1100: Kawki",null,27,0,"",0,0,0,null,null,"","","","","","","","","","","","","","","","","","","","","","","","","","","","","","","","","","","","","",""]
["1200: Chamikuro","319. Años de experiencia laboral en este servicio/ nivel educativo",28,0,"",0,0,0,null,null,"","","","","","","","","","","","","","","","","","","","","","","","","","","","","","","","","","","","","",""]
["1300: Ese eja","Anote el N° de años de experiencia prestando servicios",29,0,"",0,0,0,null,null,"","","","","","","","","","","","","","","","","","","","","","","","","","","","","","","","","","","","","",""]
["1400: Harakbut","en este servicio/nivel educativo por el tipo de personal",30,0,"",0,0,0,null,null,"","","","","","","","","","","","","","","","","","","","","","","","","","","","","","","","","","","","","",""]
["1500: Iñapari","que se está registrando (Tabla 301.)",31,0,"",0,0,0,null,null,"","","","","","","","","","","","","","","","","","","","","","","","","","","","","","","","","","","","","",""]
["1600: Ikuitu",null,32,0,"",0,0,0,null,null,"","","","","","","","","","","","","","","","","","","","","","","","","","","","","","","","","","","","","",""]
["1700: Iskonawa","320. Escala Magisterial",33,0,"",0,0,0,null,null,"","","","","","","","","","","","","","","","","","","","","","","","","","","","","","","","","","","","","",""]
["1800: Jaqaru","Complete los datos de Escala Magisterial, según corresponda",34,0,"",0,0,0,null,null,"","","","","","","","","","","","","","","","","","","","","","","","","","","","","","","","","","","","","",""]
["1900: Kakataibo","01: Primera",35,0,"",0,0,0,null,null,"","","","","","","","","","","","","","","","","","","","","","","","","","","","","","","","","","","","","",""]
["2000: Kakinte (caquinte)","02: Segunda",36,0,"",0,0,0,null,null,"","","","","","","","","","","","","","","","","","","","","","","","","","","","","","","","","","","","","",""]
["2110: Kandozi (Chapra)","03: Tercera",37,0,"",0,0,0,null,null,"","","","","","","","","","","","","","","","","","","","","","","","","","","","","","","","","","","","","",""]
["2120: Kandozi (Kandozi)","04: Cuarta",38,0,"",0,0,0,null,null,"","","","","","","","","","","","","","","","","","","","","","","","","","","","","","","","","","","","","",""]
["2200: Kukama-kukamiria","05: Quinta",39,0,"",0,0,0,null,null,"","","","","","","","","","","","","","","","","","","","","","","","","","","","","","","","","","","","","",""]
["2300: Madija (culina)","06: Sexta",40,0,"",0,0,0,null,null,"","","","","","","","","","","","","","","","","","","","","","","","","","","","","","","","","","","","","",""]
["2400: Maijiki","07: Séptima",41,0,"",0,0,0,null,null,"","","","","","","","","","","","","","","","","","","","","","","","","","","","","","","","","","","","","",""]
["2500: Matsés","08: Octava",42,0,"",0,0,0,null,null,"","","","","","","","","","","","","","","","","","","","","","","","","","","","","","","","","","","","","",""]
["2600: Matsigenka","09: Sin Escala",43,0,"",0,0,0,null,null,"","","","","","","","","","","","","","","","","","","","","","","","","","","","","","","","","","","","","",""]
["2700: Munichi",null,44,0,"",0,0,0,null,null,"","","","","","","","","","","","","","","","","","","","","","","","","","","","","","","","","","","","","",""]
["2800: Murui-muinani","321. Función o Cargo",45,0,"",0,0,0,null,null,"","","","","","","","","","","","","","","","","","","","","","","","","","","","","","","","","","","","","",""]
["2900: Matsigenka-montetokunirira","(Desempeñado a la fecha de reporte)",46,0,"",0,0,0,null,null,"","","","","","","","","","","","","","","","","","","","","","","","","","","","","","","","","","","","","",""]
["3000: Nomatsigenga","Docentes",47,0,"",0,0,0,null,null,"","","","","","","","","","","","","","","","","","","","","","","","","","","","","","","","","","","","","",""]
["3100: Ocaina","01: (102)-Director",48,0,"",0,0,0,null,null,"","","","","","","","","","","","","","","","","","","","","","","","","","","","","","","","","","","","","",""]
["3200: Omagua","02: (111)-Docente de EBE-PRITE",49,0,"",0,0,0,null,null,"","","","","","","","","","","","","","","","","","","","","","","","","","","","","","","","","","","","","",""]
["3310: Quechua amazónico (Kichwa)",null,50,0,"",0,0,0,null,null,"","","","","","","","","","","","","","","","","","","","","","","","","","","","","","","","","","","","","",""]
["3321: Quechua central (Ancash)",null,51,0,"",0,0,0,null,null,"","","","","","","","","","","","","","","","","","","","","","","","","","","","","","","","","","","","","",""]
["3322: Quechua central (Huánuco)",null,52,0,"",0,0,0,null,null,"","","","","","","","","","","","","","","","","","","","","","","","","","","","","","","","","","","","","",""]
["3323: Quechua central (Wanka)",null,53,0,"",0,0,0,null,null,"","","","","","","","","","","","","","","","","","","","","","","","","","","","","","","","","","","","","",""]
["3324: Quechua central (Pasco)","No Docentes",54,0,"",0,0,0,null,null,"","","","","","","","","","","","","","","","","","","","","","","","","","","","","","","","","","","","","",""]
["3331: Quechua norteño (Cajamarca)","03: (532)-Terapista Físico",55,0,"",0,0,0,null,null,"","","","","","","","","","","","","","","","","","","","","","","","","","","","","","","","","","","","","",""]
["3332: Quechua norteño (Inkawasi Kañaris)","04: (540)-Terapista OcupacionaL",56,0,"",0,0,0,null,null,"","","","","","","","","","","","","","","","","","","","","","","","","","","","","","","","","","","","","",""]
["3341: Quechua sureño (Chanka)","05: (533)-Terapista del Lenguaje",57,0,"",0,0,0,null,null,"","","","","","","","","","","","","","","","","","","","","","","","","","","","","","","","","","","","","",""]
["3342: Quechua sureño (Collao)","06: (503)-Personal de Salud",58,0,"",0,0,0,null,null,"","","","","","","","","","","","","","","","","","","","","","","","","","","","","","","","","","","","","",""]
["3400: Resígaro","07: (501)-Psicólogo",59,0,"",0,0,0,null,null,"","","","","","","","","","","","","","","","","","","","","","","","","","","","","","","","","","","","","",""]
["3500: Secoya","08: (502)-Trabajo Social / Servicio Social",60,0,"",0,0,0,null,null,"","","","","","","","","","","","","","","","","","","","","","","","","","","","","","","","","","","","","",""]
["3600: Sharanahua",null,61,0,"",0,0,0,null,null,"","","","","","","","","","","","","","","","","","","","","","","","","","","","","","","","","","","","","",""]
["3700: Shawi",null,62,0,"",0,0,0,null,null,"","","","","","","","","","","","","","","","","","","","","","","","","","","","","","","","","","","","","",""]
["3800: Shipibo-Konibo",null,63,0,"",0,0,0,null,null,"","","","","","","","","","","","","","","","","","","","","","","","","","","","","","","","","","","","","",""]
["3900: Shiwilu",null,64,0,"",0,0,0,null,null,"","","","","","","","","","","","","","","","","","","","","","","","","","","","","","","","","","","","","",""]
["4000: Taushiro",null,65,0,"",0,0,0,null,null,"","","","","","","","","","","","","","","","","","","","","","","","","","","","","","","","","","","","","",""]
["4100: Ticuna",null,66,{"$f":"IF(AND(LEFT(Q84,2)=\"01\",LEFT(W84,2)=\"01\",LEFT(X84,2)=\"01\",E84=1),1,0)","v":0},{"$f":"$B$16","v":""},{"$f":"IF(Q84<>\"\",VALUE(LEFT(Q84,2)),0)","v":0},{"$f":"IF(P84<>\"\",COUNTIF($P$19:$P$319,P84),0)","v":0},0,null,null,"","","","","","","","","","","","","","","","","","","","","","","","","","","","","","","","","","","","","",""]
["4200: Urarina",null,67,0,"",0,0,{"$f":"IF(K85<>\"\",1,0)","v":0},null,null,{"$f":"IF(C85<=$B$5,C85,\"\")","v":""},"","","","","","","","","","","","","","","","","","","","","","","","","","","","","","","","","","","","",""]
["4300: Wampis","Administrativos",68,0,"",0,0,0,null,null,"","","","","","","","","","","","","","","","","","","","","","","","","","","","","","","","","","","","","",""]
["4400: Yagua","09: (504)-Administrador o Contador",69,0,"",0,0,0,null,null,"","","","","","","","","","","","","","","","","","","","","","","","","","","","","","","","","","","","","",""]
["4500: Yaminahua","10: (506)-Auxiliar de Biblioteca",70,0,"",0,0,0,null,null,"","","","","","","","","","","","","","","","","","","","","","","","","","","","","","","","","","","","","",""]
["4600: Yanesha","11: (507)-Auxiliar de Laboratorios",71,0,"",0,0,0,null,null,"","","","","","","","","","","","","","","","","","","","","","","","","","","","","","","","","","","","","",""]
["4700: Yine","12: (508)-Secretaria u oficinista",72,0,"",0,0,0,null,null,"","","","","","","","","","","","","","","","","","","","","","","","","","","","","","","","","","","","","",""]
["4800: Nahua","13: (511)-Asistente Administrativo",73,0,"",0,0,0,null,null,"","","","","","","","","","","","","","","","","","","","","","","","","","","","","","","","","","","","","",""]
["5100: Alemán","14: (512)-Personal de Servicio - Mantenimiento",74,0,"",0,0,0,null,null,"","","","","","","","","","","","","","","","","","","","","","","","","","","","","","","","","","","","","",""]
["5200: Inglés","15: (513)-Personal de Servicio - Cocina",75,0,"",0,0,0,null,null,"","","","","","","","","","","","","","","","","","","","","","","","","","","","","","","","","","","","","",""]
["5300: Italiano","16: (514)-Personal de Servicio - Limpieza",76,0,"",0,0,0,null,null,"","","","","","","","","","","","","","","","","","","","","","","","","","","","","","","","","","","","","",""]
["5400: Japonés","17: (515)-Personal de Servicio - Vigilante",77,0,"",0,0,0,null,null,"","","","","","","","","","","","","","","","","","","","","","","","","","","","","","","","","","","","","",""]
["5500: Portugués","18: (516)-Personal de Servicio - Otro",78,0,"",0,0,0,null,null,"","","","","","","","","","","","","","","","","","","","","","","","","","","","","","","","","","","","","",""]
["5600: Ruso","19: (505)-Otro personal profesional",79,0,"",0,0,0,null,null,"","","","","","","","","","","","","","","","","","","","","","","","","","","","","","","","","","","","","",""]
["5700: Francés","20: (518)-Otro personal No profesional",80,0,"",0,0,0,null,null,"","","","","","","","","","","","","","","","","","","","","","","","","","","","","","","","","","","","","",""]
["5800: Otra lengua extranjera",null,81,0,"",0,0,0,null,null,"","","","","","","","","","","","","","","","","","","","","","","","","","","","","","","","","","","","","",""]
[null,null,82,0,"",0,0,0,null,null,"","","","","","","","","","","","","","","","","","","","","","","","","","","","","","","","","","","","","",""]
["308. Lengua Originaria",null,83,0,"",0,0,0,null,null,"","","","","","","","","","","","","","","","","","","","","","","","","","","","","","","","","","","","","",""]
["De: 0200 a 4800",null,84,0,"",0,0,0,null,null,"","","","","","","","","","","","","","","","","","","","","","","","","","","","","","","","","","","","","",""]
[null,null,85,0,"",0,0,0,null,null,"","","","","","","","","","","","","","","","","","","","","","","","","","","","","","","","","","","","","",""]
["309. Fuente de Financiamiento",null,86,0,"",0,0,0,null,null,"","","","","","","","","","","","","","","","","","","","","","","","","","","","","","","","","","","","","",""]
["01: Sector Educación",null,87,0,"",0,0,0,null,null,"","","","","","","","","","","","","","","","","","","","","","","","","","","","","","","","","","","","","",""]
["02: Otro sector público",null,88,0,"",0,0,0,null,null,"","","","","","","","","","","","","","","","","","","","","","","","","","","","","","","","","","","","","",""]
["03: Municipalidad",null,89,0,"",0,0,0,null,null,"","","","","","","","","","","","","","","","","","","","","","","","","","","","","","","","","","","","","",""]
["04: Gobierno Regional",null,90,0,"",0,0,0,null,null,"","","","","","","","","","","","","","","","","","","","","","","","","","","","","","","","","","","","","",""]
["05: APAFA",null,91,0,"",0,0,0,null,null,"","","","","","","","","","","","","","","","","","","","","","","","","","","","","","","","","","","","","",""]
["06: Otra fuente Privada",null,92,0,"",0,0,0,null,null,"","","","","","","","","","","","","","","","","","","","","","","","","","","","","","","","","","","","","",""]
[null,null,93,0,"",0,0,0,null,null,"","","","","","","","","","","","","","","","","","","","","","","","","","","","","","","","","","","","","",""]
["310. Condición Laboral",null,94,0,"",0,0,0,null,null,"","","","","","","","","","","","","","","","","","","","","","","","","","","","","","","","","","","","","",""]
["01: Nombrado",null,95,0,"",0,0,0,null,null,"","","","","","","","","","","","","","","","","","","","","","","","","","","","","","","","","","","","","",""]
["02: Contratado",null,96,0,"",0,0,0,null,null,"","","","","","","","","","","","","","","","","","","","","","","","","","","","","","","","","","","","","",""]
["03: No aplica",null,97,0,"",0,0,0,null,null,"","","","","","","","","","","","","","","","","","","","","","","","","","","","","","","","","","","","","",""]
[null,null,98,0,"",0,0,0,null,null,"","","","","","","","","","","","","","","","","","","","","","","","","","","","","","","","","","","","","",""]
["311. Modalidad de Contrato",null,99,0,"",0,0,0,null,null,"","","","","","","","","","","","","","","","","","","","","","","","","","","","","","","","","","","","","",""]
["Contrato Público",null,100,0,"",0,0,0,null,null,"","","","","","","","","","","","","","","","","","","","","","","","","","","","","","","","","","","","","",""]
["01: A plazo fijo D. Leg. 728",null,null,null,null,null,null,null,null,null,null,"","","","","","","","","","","","","","","","","","","","","","",""]
["02: Locación de Serv. / Honorarios","99: (999)-Auxiliar de Educación",null,null,null,null,null,null,null,null,"…","…","…","…","…","…","…","…","…","…","…","…","…","…","…","…","…","…","…","…","…","…","…","…","…","…"]
["03: CAS - D. Leg. 1057"]
["04: Contrato D. Leg. 276","322. Situación en el Cargo Directivo"]
["05: Contrato Ley 30328","01: Designado"]
["06: Otra modalidad","02: Encargado"]
["Contrato Privado"]
["07: A plazo indefinido (Permanente)"]
["08: Plazo fijo (Tiempo determinado)","05: Encargado"]
["09: A tiempo parcial (por horas)"]
["10: Locación de Serv. / Honorarios","323. Destaque o Licencia"]
["11: Otra modalidad","01: Cubriendo una licencia"]
[null,"02: De otra I.E./DRE/UGEL"]
["312. Máximo Nivel Educativo Alcanzado","03: No Aplica"]
["01: EP.Concluidos con título"]
["02: EP.Concluidos sin título"]
["03: EP.No concluidos"]
["04: NP.Concluidos con título","324. Jornada Laboral (Nombramiento / Contrato)"]
["05: NP.Concluidos sin título","40: 40 horas"]
["06: NP.No concluidos","30: 30 horas"]
["07: Secundaria","25: 25 horas"]
["08: Primaria","24: 24 horas"]
[null,"23: Menos 24 horas"]
["313. Especialidad del Título"]
["01: Educación Inicial","SI / NO"]
["02: Educación Primaria","SI"]
["03: E.I. Intercultural Bilingüe","NO"]
["04: E.P. Intercultural Bilingüe"]
["05: Educación Básica Alternativa","Parroquiales"]
["06: Educación Especial","05: APAFA"]
["07: Educación Física","06: Otra fuente Privada"]
["08: Educación Artística","01: Sector Educación"]
["09: E.S. Lengua y Literatura"]
["10: E.S. Comunicación"]
["11: E.S. Matemática y Física","336.2 ¿Cuál es el tipo de discapacidad?"]
["12: E.S. Matemática","01: Auditiva"]
["13: E.S. CCSS y Filosofía","02: Visual"]
["14: E.S. Ciencias Sociales","03: Física o Motora"]
["15: E.S. Ciencias Naturales","04: Otras"]
["16: E.S. Ciencia Tecnología y Ambiente"]
["17: E.S. Alimentación y Nutrición"]
["18: E.S. Biología y Química"]
["19: E.S. Historia y Geografía"]
["20: E.S. CC.HH. Sociales"]
["21: E.S. Idioma Inglés"]
["22: Educación Religiosa"]
["23: E.S. Educación Familiar"]
["24: E.T. Artes Industriales"]
["25: E.T. Artesanía"]
["26: E.T. Agropecuaria"]
["27: E.T. Construcción en madera"]
["28: E.T. Computación e Informática"]
["29: E.T. Carpintería/Ebanistería"]
["30: E.T. Electricidad"]
["31: E.T. Electrónica"]
["32: E.T. Ebanistería"]
["33: E.T. Industria del Vestido"]
["34: E.T. Industria del Vestido Alimentación y Alta Costura"]
["35: E.T. en Industria del Vestido y Alta Costura"]
["36: E.T.Técnica Esp. Ind. del Vestido Ind.Alimentaria y Artes"]
["37: E.T. Industria Alimentaria"]
["38: E.T. Mecánica Automotriz"]
["39: E.T. Mecánica de Producción"]
["40: E.T. Mecánica de Producción y Soldadura"]
["41: E.T. Textilería"]
["42: Otra pedagógica"]

{"sheet":"C400","index":4,"n_rows":61,"n_cols":24,"rows_kept":61,"cut":false,"hidden":false,"merged":[[49,18,50,18],[49,22,50,22],[14,18,14,20],[17,2,17,23]]}
[]
[null,null,null,null,null,"CENSO EDUCATIVO 2025"]
[null,null,null,null,null,"MATRÍCULA, DOCENTES Y RECURSOS"]
[]
[]
[]
[null,null,"324. ÁREA DE PSICOLOGÍA"]
[null,null,null,"324 DURANTE EL PRESENTE AÑO, ¿SE CUENTA CON ALGÚN PROFESIONAL DE PSICOLOGÍA",null,null,null,null,null,null,null,null,null,null,"325. ¿A TRAVÉS DE QUÉ MECANISMO SE INCORPORÓ AL PROFESIONAL DE PSICOLOGÍA?"]
[null,null,null,"   INCORPORADO A LA INSTITUCIÓN EDUCATIVA/PROGRAMA EDUCATIVO?",null,null,null,null,null,null,null,null,null,null,null,"Marque con una “X”, una opcion"]
[null,null,null,null,null,null,null,null,null,null,null,null,null,null,null,"Contratación a través de UGEL (alguna intervención o estrategia)",null,null,null,null,null,""]
[null,null,null,"Sí  ","",null,null,null,null,null,null,null,null,null,null,"Contratación a través de UGEL (identificación de necesidad)",null,null,null,null,null,""]
[null,null,null,null,null,null,null,null,null,null,null,null,null,null,null,"Prácticas profesionales",null,null,null,null,null,""]
[null,null,null,null,null,null,null,null,null,null,null,null,null,null,null,"Servicio Rural y Urbano Marginal de Salud (Serums)",null,null,null,null,null,""]
[null,null,null,"No  ",null,"     Pase a la prgunta 401",null,null,null,null,null,null,null,null,null,"Pasantias",null,null,null,null,null,""]
[null,null,null,null,null,null,null,null,null,null,null,null,null,null,null,"Otro",null,null,"",null,null,""]
[]
[]
[null,null,"500. FORTALECIMIENTO DE LA GESTIÓN"]
[]
[null,null,"401. ESTE SERVICIO/NIVEL EDUCATIVO, ¿COORDINA ALGUNA ACCIÓN CON OTROS ACTORES DE LA",null,null,null,null,null,null,null,null,null,null,null,"405. USTED SEÑOR(A) DIRECTOR), ¿CUENTA CON PERSONAL ADMINISTRATIVO?"]
[null,null,null,"LOCALIDAD PARA MEJORAR LA PRESTACIÓN DEL SERVICIO EDUCATIVO?"]
[null,null,null,null,null,null,null,null,null,null,null,null,null,null,null,null,"Sí    ",null,"No    "]
[null,null,null,"Sí",null,null,"No"]
[null,null,null,null,null,null,null,null,null,null,null,null,null,null,null,null,null,null,"¿Qué temáticas considera usted que el personal adm. debe ser capacitado?"]
[null,null,null,null,"Indique a los actores de la localidad",null,null,null,null,null,null,null,null,null,null,null,null,null,"Marque como máximo tres opciones"]
[null,null,null,null,"Marque con una \"X\", una o más opciones"]
[null,null,null,null,null,"Municipalidad distrital",null,null,null,null,null,null,null,null,null,null,null,null,"Trabajo en equipo"]
[null,null,null,null,null,"Municipalidad provincial",null,null,null,null,null,null,null,null,null,null,null,null,"Orientación al servicio y comunicación asertiva"]
[null,null,null,null,null,"Gobierno regional",null,null,null,null,null,null,null,null,null,null,null,null,"Primeros auxilios y seguridad y salud en el trabajo"]
[null,null,null,null,null,"Empresa privada",null,null,null,null,null,null,null,null,null,null,null,null,"Manejo de herramientas TIC y ofimática"]
[null,null,null,null,null,"ONG o sociedad civil",null,null,null,null,null,null,null,null,null,null,null,null,"Manejo de los sistemas informáticos del MINEDU"]
[null,null,null,null,null,null,null,null,null,null,null,null,null,null,null,null,null,null,"Mantenimiento (electricidad, gasfitería, carpintería, etc.)"]
[null,null,"402. USTED SEÑOR(A) DIRECTOR(A), ¿TIENE AULA A CARGO U HORAS LECTIVAS PARA EL PRESENTE AÑO?"]
[null,null,null,null,null,null,null,null,null,null,null,null,null,null,"406. DURANTE EL PRESENTE AÑO ESCOLAR 2025, ¿CON QUÉ FRECUENCIA HA"]
[null,null,null,"Sí","",null,"No",null,null,null,null,null,null,null,null,null,"VISITADO EL PORTAL WEB PARA DIRECTIVO DE IIEE DEL MINEDU?"]
[null,null,null,null,null,null,null,null,null,"","","","",null,null,null,"(https://directivos-minedu.gob.pe/)"]
[null,null,"403. ACTUALMENTE CUENTA CON ESPACIO EN EL QUE PUEDA DIALOGAR CON DIRECTORES DE OTRAS IIEE",null,null,null,null,null,null,null,null,null,null,null,null,null,"Marque con una “X”, una opción"]
[null,null,null,"PARA COMPARTIR EXPERIENCIAS Y DESARROLLAR ESTRATEGIAS PARA RESOLVER PROBLEMAS DE"]
[null,null,null,"LA GESTIÓN DE SU SERVICIO/NIVEL EDUCATIVO?",null,null,null,null,null,null,null,null,null,null,null,null,null,null,"Nunca he ingresado durante este año"]
[null,null,null,null,null,null,null,null,null,null,null,null,null,null,null,null,null,null,"Casi nunca"]
[null,null,null,"Sí","",null,"No",null,null,null,null,null,null,null,null,null,null,null,"A veces"]
[null,null,null,null,null,null,null,null,null,null,null,null,null,null,null,null,null,null,"Frecuentemente"]
[null,null,null,null,null,"¿Quién promueve estos espacios?",null,null,null,null,null,null,null,null,null,null,null,null,"Siempre"]
[null,null,null,null,null,"Marque con una “X”, una o más opciones"]
[null,null,null,null,null,null,null,null,null,"","","","",null,"407. CON RESPECTO A LAS ACTIVIDADES ADMINISTRATIVAS, SELECCIONE LOS DOS PRINCIPALES"]
[null,null,null,null,"","DRE/GRE",null,null,null,"","","","",null,null,"ÁMBITOS QUE REPRESENTARON MAYOR CARGA LABORAL DURANTE EL PRESENTE AÑO E"]
[null,null,null,null,"","UGEL",null,null,null,"","","","",null,null,"INDIQUE UN ORDEN DE PRIORIDAD DE \"1\" O \"2\", SIENDO 1 \"MAYOR CARGA\" Y 2 \"MENOR CARGA\""]
[null,null,null,null,"","Red educativa",null,null,null,"","","","",null,null,"ENTRE LA SELECCIONADA"]
[null,null,null,null,"","Por iniciativa propia",null,"",null,"","","",""]
[null,null,null,null,"","Asociaciones varias (ONG, colectivos, empresas, universidades, sindicatos)",null,null,null,"","","","",null,null,null,null,null,"Ámbito",null,null,null,"Prioridad\n(*)"]
[null,null,null,null,"","Ninguna de las anteriores",null,"",null,"","","","",null,null,null,null,null,null,null,null,null,null,{"$f":"SUM(X52:X57)","v":0}]
[null,null,null,null,null,null,null,null,null,null,null,null,null,null,null,1,"Gestión de recursos financieros, bienes, servicios e infraestructura",null,null,null,null,null,null,{"$f":"IF(W52<>\"\",1,0)","v":0}]
[null,null,"404. ¿QUÉ TAN INTERESADO SE ENCONTRARÍA DE PARTICIPAR EN EL 2026 DE ESPACIOS EN LOS QUE SE",null,null,null,null,null,null,null,null,null,null,null,null,2,"Gestión de información de la IIEE (registro en sistemas administrativos)",null,null,null,null,null,null,0]
[null,null,null,"REALICE TRABAJO COLABORATIVO CON LOS DIRECTORES DE OTRAS IIEE PARA DIALOGAR SOBRE",null,null,null,null,null,null,null,null,null,null,null,3,"Gestión y seguimiento del uso de los recursos educativos",null,null,null,null,null,null,0]
[null,null,null,"LOS PROBLEMAS DE LA GESTIÓN ESCOLAR?",null,null,null,null,null,"","","","",null,null,4,"Limpieza y mantenimiento",null,null,null,null,null,null,0]
[null,null,null,"Marque con una “X”, una opción",null,null,null,null,null,"","","","",null,null,5,"Prevención y atención de situaciones de riesgo",null,null,null,null,null,null,0]
[null,null,null,null,null,null,null,null,null,"","","","",null,null,6,"Vigilancia y guardianía",null,null,null,null,null,null,0]
[null,null,null,null,null,"Muy interesado"]
[null,null,null,null,null,"Interesado",null,null,null,null,null,null,null,null,null,null,null,null,"(*) Señale Prioridad, donde:"]
[null,null,null,null,null,"Poco interesado",null,null,null,null,null,null,null,null,null,null,null,null,"1 = Más carga"]
[null,null,null,null,null,"Nada interesado",null,null,null,null,null,null,null,null,null,null,null,null,"2 = Menos carga"]

{"sheet":"C500","index":5,"n_rows":97,"n_cols":27,"rows_kept":97,"cut":false,"hidden":false,"merged":[[1,6,1,24],[2,6,2,24],[76,9,76,12],[77,9,77,12],[78,9,78,12],[71,16,72,19],[71,20,71,25],[72,9,72,12],[72,22,72,23],[73,9,73,12],[73,20,73,21],[73,22,73,23],[58,5,58,7],[58,8,58,9],[58,10,58,11],[70,5,71,6],[79,9,79,12],[80,9,80,12],[74,9,74,12],[74,20,74,21],[74,22,74,23],[75,9,75,12],[75,20,75,21],[75,22,75,23],[70,8,71,8],[70,9,71,12],[25,3,25,6],[25,8,25,9],[25,10,25,11],[54,2,57,4],[54,5,57,7],[54,8,57,9],[54,10,57,11],[54,12,57,12],[58,2,58,4],[30,17,36,20],[32,15,34,16],[22,8,22,9],[22,10,22,11],[22,15,29,16],[22,17,29,20],[23,10,23,11],[24,8,24,9],[24,10,24,11],[6,1,6,27],[12,15,13,16],[12,17,13,20],[12,21,12,26],[14,15,21,16],[14,17,21,20],[18,7,18,9],[18,10,18,12],[19,7,20,7],[19,8,20,9],[19,10,20,11],[19,12,20,12],[21,8,21,9],[21,10,21,11]]}
[]
[null,null,null,null,null,null,"CENSO EDUCATIVO 2025"]
[null,null,null,null,null,null,"MATRÍCULA, DOCENTES Y RECURSOS"]
[]
[]
[]
[null,"500. GESTIÓN DEL RIESGO DE DESASTRES"]
[]
[null,null,"501. EN EL PRESENTE AÑO, ESTE SERVICIO/NIVEL EDUCATIVO, ¿HA INCORPORADO ACCIONES",null,null,null,null,null,null,null,null,null,null,null,null,"502. SOBRE LA GESTIÓN DEL RIESGO DE DESASTRES EN ESTE SERVICIO/NIVEL EDUCATIVO,"]
[null,null,null,"ESTRATÉGICAS Y OPERATIVAS EN GESTIÓN DEL RIESGO DE DESASTRES Y SEGURIDAD Y",null,null,null,null,null,null,null,null,null,null,null,null,"ATIENDA LAS SIGUIENTES PREGUNTAS:"]
[null,null,null,"DEFENSA NACIONAL EN SUS INSTRUMENTOS DE GESTIÓN VIGENTES? ",null,null,null,null,null,null,null,null,null,null,null,null,"Marque con una “X” en “Si” o “No” según corresponda en atención a cada pregunta"]
[]
[null,null,null,"Sí","",null,null,null,"No  ",null,null,null,null,null,null,"Bien o Servicio",null,"Pregunta",null,null,null,"Marque con un “X”, según corresponda "]
[null,null,null,null,null,null,null,null,null,null,null,null,null,null,null,null,null,null,null,null,null,null,"SI","NO","Si es Sí, de quién lo recibió"]
[null,null,null,null,null,null,null,null,null,null,null,null,null,null,null,"Planos de Seguridad",null,"¿El servicio/nivel educativo cuenta con planos de seguridad acorde a la normativa?"]
[null,null,null,"Precise las acciones incorporadas en los documentos de gestión",null,null,null,null,null,null,null,null,null,null,null,null,null,null,null,null,null,null,null,null,"De la DRE/GRE",null,""]
[null,null,null,"Marque con una “X”, según corresponda ",null,null,null,null,null,null,null,null,null,null,null,null,null,null,null,null,null,null,null,null,"De la UGEL",null,""]
[null,null,null,null,null,null,null,null,null,null,null,null,null,null,null,null,null,null,null,null,null,null,"",null,"De la Municipalidad",null,""]
[null,null,null,null,null,null,null,"Riesgo de Desastres",null,null,"Seguridad y Defensa Nacional",null,null,null,null,null,null,null,null,null,null,null,null,null,"De una entidad privada",null,""]
[null,null,"Documentos de Gestión",null,null,null,null,"Acciones Estratégicas","Acciones Operativas",null,"Acciones Estratégicas",null,"Acciones Operativas",null,null,null,null,null,null,null,null,null,null,null,"Adquisición de la IE",null,""]
[null,null,null,null,null,null,null,null,null,null,null,null,null,null,null,null,null,null,null,null,null,null,null,null,"Donación",null,""]
[null,null,"Proyecto Educativo Inst. (PEI)",null,null,null,null,"",null,null,""]
[null,null,"Plan Anual de Trabajo (PAT)",null,null,null,null,null,"",null,null,null,"",null,null,"Dispositivos de Seguridad",null,"¿El servicio/nivel educativo cuenta con dispositivos de seguridad acorde a lo que indica en sus planos de seguridad?"]
[null,null,"Proyecto Curricular. Inst. (PCI)",null,null,null,null,"",null,null,"",null,null,null,null,null,null,null,null,null,null,null,null,null,"De la DRE/GRE",null,""]
[null,null,"Reglamento Interno (RI)",null,null,null,null,null,"",null,null,null,"",null,null,null,null,null,null,null,null,null,null,null,"De la UGEL",null,""]
[null,null,"Otros","",null,null,null,"","",null,"",null,"",null,null,null,null,null,null,null,null,null,"",null,"De la Municipalidad",null,""]
[null,null,null,null,null,null,null,null,null,null,null,null,null,null,null,null,null,null,null,null,null,null,null,null,"De una entidad privada",null,""]
[null,null,null,null,null,null,null,null,null,null,null,null,null,null,null,null,null,null,null,null,null,null,null,null,"Adquisición de la IE",null,""]
[null,null,null,null,null,null,null,null,null,null,null,null,null,null,null,null,null,null,null,null,null,null,null,null,"Donación",null,""]
[]
[null,null,null,null,null,null,null,null,null,null,null,null,null,null,null,null,null,"¿El servicio/nivel educativo cuenta con dispositivos de seguridad incompletos"]
[null,null,null,null,null,null,null,null,null,null,null,null,null,null,null,null,null,null,null,null,null,null,null,null,"De la DRE/GRE",null,""]
[null,null,null,null,null,null,null,null,null,null,null,null,null,null,null,"Otros Casos",null,null,null,null,null,null,null,null,"De la UGEL",null,""]
[null,null,null,null,null,null,null,null,null,null,null,null,null,null,null,null,null,null,null,null,null,null,"",null,"De la Municipalidad",null,""]
[null,null,null,null,null,null,null,null,null,null,null,null,null,null,null,null,null,null,null,null,null,null,null,null,"De una entidad privada",null,""]
[null,null,null,null,null,null,null,null,null,null,null,null,null,null,null,null,null,null,null,null,null,null,null,null,"Adquisición de la IE",null,""]
[null,null,null,null,null,null,null,null,null,null,null,null,null,null,null,null,null,null,null,null,null,null,null,null,"Donación",null,""]
[]
[]
[]
[null,null,"503. EN EL PRESENTE AÑO, LOS MIEMBROS DE ESTE SERVICIO/NIVEL EDUCATIVO,",null,null,null,null,null,null,null,null,null,null,null,null,"504. EN EL PRESENTE AÑO, ESTE SERVICIO/NIVEL EDUCATIVO HA SUFRIDO EL IMPACTO DE"]
[null,null,null,"¿HAN RECIBIDO ACCIONES FORMATIVAS EN MATERIA DE LA GESTIÓN DEL RIESGO ",null,null,null,null,null,null,null,null,null,null,null,null,"DAÑOS DE UN FENÓMENO NATURAL O ANTRÓPICO?"]
[null,null,null,"DE DESASTRES (GRD) Y/O SEGURIDAD Y DEFENSA NACIONAL (SDN)?"]
[null,null,null,null,null,null,null,null,null,null,null,null,null,null,null,null,"Sí",null,null,null,null,null,"No  ",""]
[null,null,null,"Sí","",null,null,null,"No  "]
[]
[null,null,null,null,null,null,null,null,null,null,"Entidad",null,"SI - NO",null,null,null,null,null,null,"¿El servicio fue",null,null,"Sí",""]
[null,null,null,null,null,"El servicio fue brindado por:",null,null,null,"DRE/GRE",null,null,"",null,null,null,null,null,null,"suspendido?"]
[null,null,null,null,null,null,null,null,null,"UGEL",null,null,"",null,null,null,null,null,null,null,null,null,"No  ",""]
[null,null,null,null,null,null,null,null,null,"Municipio",null,null,""]
[null,null,null,null,null,null,null,null,null,"ONG/Entidad privada",null,null,"",null,null,null,"¿Cuál de los siguientes canales se utilizó para reportar la emergencia a la UGEL?"]
[null,null,null,null,null,null,null,null,null,null,null,null,{"$f":"COUNTIF(M48:M51,\"SI\")+COUNTIF(M48:M51,\"SI\")","v":0},null,null,null,"Marque con una “X”, una o más opciones"]
[null,null,"Tematicas: Marque con una “X”, según corresponda"]
[null,null,"Gestión del Riesgo de Desastres",null,null,null,null,null,null,null,"Seguridad y Defensa Nacional",null,null,null,null,null,"","Celular"]
[null,null,"Política/Plan NAcional en GRD",null,null,"Componentes, procesos o procedimientos de la GRD",null,null,"*Herramientas técnicas / Financieras en GRD",null,"Política/Plan Nacional en SDN",null,"Fundamentos de la SDN",null,null,null,"","Radiofonía"]
[null,null,null,null,null,null,null,null,null,null,null,null,null,null,null,null,"","Teléfono satelital"]
[null,null,null,null,null,null,null,null,null,null,null,null,null,null,null,null,"","Plataforma web"]
[null,null,null,null,null,null,null,null,null,null,null,null,null,null,null,null,"","Por conducto regular (oficio, informe)"]
[null,null,"",null,null,"",null,null,"",null,"",null,"",null,null,null,"","No se sabía que había que reportar a la UGEL"]
[null,null,{"$f":"COUNTIF(C59:M59,\"X\")","v":0},null,null,null,null,null,null,null,null,null,null,null,null,null,"","No se reportó la emergencia porque no hay cobertura ni canal disponible en la zona."]
[]
[]
[null,null,"505. EN EL PRESENTE AÑO, ESTE SERVICIO/NIVEL EDUCATIVO, ¿HA ORGANIZADO Y EJECUTADO",null,null,null,null,null,null,null,null,null,null,null,null,"507. EN EL AÑO 2024, ESTE SERVICIO/NIVEL EDUCATIVO, ¿PARTICIPÓ EN LOS SIMULACROS"]
[null,null,null,"CAMPAÑAS COMUNICACIONALES DE GESTIÓN DEL RIESGO DE DESASTRES (GRD) Y/O",null,null,null,null,null,null,null,null,null,null,null,null,"CONVOCADOS POR MINEDU Y/O INDECI?"]
[null,null,null,"SEGURIDAD Y DEFENSA NACIONAL (SDN)?"]
[null,null,null,null,null,null,null,null,null,null,null,null,null,null,null,null,"Sí","",null,null,null,null,"No  "]
[null,null,null,"Sí","",null,null,null,"No  "]
[]
[null,null,null,null,null,null,null,null,null,null,null,null,null,null,null,null,"¿Qué nivel de preparación lograron?"]
[null,null,null,"Tipo de campaña que realizó",null,null,null,null,null,null,null,null,null,null,null,null,"Marque con una “X”, el nivel logrado en cada simulacro"]
[null,null,null,null,null,"Ítems",null,null,"Elija una opción","Temática de la campaña*"]
[null,null,null,null,null,null,null,{"$f":"COUNTIF(I73:I81,\"SI\")+COUNTIF(I73:I81,\"NO\")","v":0},null,null,null,null,null,null,null,null,"N° de simulacro",null,null,null,"Nivel de preparación Marque con un “X”"]
[null,null,null,1,"Pasacalle",null,null,null,"","",null,null,null,null,null,null,null,null,null,null,"Inicio",null,"Proceso",null,"Bueno","Destacado"]
[null,null,null,2,"Feria",null,null,null,"","",null,null,null,null,null,null,1,"Primer simulacro",null,null,"",null,"",null,"",""]
[null,null,null,3,"Activaciones motivadoras",null,null,null,"","",null,null,null,null,null,null,2,"Segundo simulacro",null,null,"",null,"",null,"",""]
[null,null,null,4,"Conferencias /Foros",null,null,null,"","",null,null,null,null,null,null,3,"Tercer simulacro",null,null,"",null,"",null,"",""]
[null,null,null,5,"Webinars",null,null,null,"",""]
[null,null,null,6,"Difusión de afiches, trípticos, volantes",null,null,null,"",""]
[null,null,null,7,"Murales",null,null,null,"",""]
[null,null,null,8,"Post en redes sociales",null,null,null,"",""]
[null,null,null,9,"Post radiales",null,null,null,"",""]
[]
[]
[null,null,"506. ESTE SERVICIO/NIVEL EDUCATIVO, ¿CUENTA CON UN PLAN DE GESTIÓN DEL RIESGO DE DESASTRES?"]
[]
[null,null,null,"Sí","",null,null,null,"No  "]
[]
[]
[null,null,null,"¿Qué actividades ha desarrollado en el Plan?"]
[null,null,null,"Marque con una “X”, una o más opciones"]
[]
[null,null,null,"","Identificó los peligros más frecuentes de la IE. (Ejem: lluvias, huaycos, entre otros)."]
[null,null,null,"","Identificó las vulnerabilidades en la IE. (Ejem: techos, canaletas, paredes, pisos en mal estado, personal sin capacitación, entre otros)."]
[null,null,null,"","Priorizó acciones correctivas en la infraestructura de la IE con presupuesto de mantenimiento."]
[null,null,null,"","Procedimientos de evacuación a zonas seguras en situaciones de emergencias."]
[null,null,null,"","Procedimientos de contención y soporte socioemocional en situaciones de emergencias."]
[null,null,null,"","Procedimientos de aplicación del currículo vigente en situaciones de emergencias"]

{"sheet":"C600","index":6,"n_rows":129,"n_cols":23,"rows_kept":129,"cut":false,"hidden":false,"merged":[[1,6,1,20],[2,6,2,20],[84,3,84,7],[84,8,84,10],[84,11,84,18],[84,19,84,21],[44,9,44,11],[46,8,46,10],[47,8,47,10],[47,20,47,22],[48,8,48,10],[69,20,69,22],[6,1,6,23],[15,15,16,19],[15,20,16,20],[15,21,16,21],[15,22,16,22],[26,17,26,19],[85,3,85,7],[85,8,85,10],[85,11,85,18],[85,19,85,21],[82,3,82,7],[82,8,82,10],[82,11,82,18],[82,19,82,21],[83,3,83,7],[83,8,83,10],[83,11,83,18],[83,19,83,21]]}
[]
[null,null,null,null,null,null,"CENSO EDUCATIVO 2025"]
[null,null,null,null,null,null,"MATRÍCULA, DOCENTES Y RECURSOS"]
[]
[]
[]
[null,"600. EDUCACIÓN AMBIENTAL"]
[]
[null,null,"601. EN EL PRESENTE AÑO, ESTE SERVICIO/NIVEL EDUCATIVO, ¿HA ELABORADO SU PROYECTO",null,null,null,null,null,null,null,null,null,null,null,"602. SEÑOR(A) DIRECTOR(A), SI HA ELABORADO SU PROYECTO EDUCATIVO AMBIENTAL"]
[null,null,null,"EDUCATIVO AMBIENTAL INTEGRADO (PEAI)?",null,null,null,null,null,null,null,null,null,null,null,"INTEGRADO (PEAI), MARQUE USTED, LAS PROBLEMÁTICAS/OPORTUNIDADES AMBIENTALES"]
[null,null,null,null,null,null,null,null,null,null,null,null,null,null,null,"QUE SE ABORDAN EN EL PEAI, DE ACUERDO A LO SIGUIENTE:"]
[null,null,null,"Sí"]
[null,null,null,null,null,null,null,null,null,null,null,null,null,null,null,"Marque con una “X”, hasta dos opciones"]
[null,null,null,null,null,"¿Ha implementado su proyecto educativo ambiental integrado (PEAI):"]
[]
[null,null,null,null,null,"Sí  ","",null,"Período",null,"Año","Mes",null,null,null,"Problemáticas / Oportunidades",null,null,null,null,"Principal","Comple- mentario","No aplica"]
[null,null,null,null,null,null,null,"","Desde",null,"",""]
[null,null,null,null,null,"No  ","","","Hasta",null,"","",null,null,null,1,"Contaminación por residuos sólidos",null,null,null,"","",""]
[null,null,null,null,null,null,null,null,null,null,null,null,null,null,null,2,"Cambio climático",null,null,null,"","",""]
[null,null,null,null,null,null,null,null,null,null,null,null,null,null,null,3,"Contaminación del agua",null,null,null,"","",""]
[null,null,null,"No  ","",null,"Pase a la pregunta 603.",null,null,null,null,null,null,null,null,4,"Desertificación",null,null,null,"","",""]
[null,null,null,null,null,null,null,null,null,null,null,null,null,null,null,5,"Depredación de flora y fauna",null,null,null,"","",""]
[null,null,null,null,null,null,null,null,null,null,null,null,null,null,null,6,"Microplásticos",null,null,null,"","",""]
[null,null,null,null,"Indique el/los motivo(s):",null,null,null,null,null,null,null,null,null,null,7,"3R: reducir, reusar, reciclar",null,null,null,"","",""]
[null,null,null,null,"Marque con una “X”, una o más opciones",null,null,null,null,null,null,null,null,null,null,8,"Contaminación del aire",null,null,null,"","",""]
[null,null,null,null,null,null,null,null,null,null,null,null,null,null,null,9,"Alimentación saludable",null,null,null,"","",""]
[null,null,null,null,"","Falta de conocimiento o capacitación",null,null,null,null,null,null,null,null,null,10,"Otro","",null,null,"","",""]
[null,null,null,null,"","Falta de recursos"]
[null,null,null,null,"","Resistencia al cambio"]
[null,null,null,null,"","Dificultades para integrar el PEAI en el currículo"]
[null,null,null,null,"","Falta de apoyo institucional"]
[]
[]
[null,null,"603. EL SERVICIO/NIVEL EDUCATIVO, ¿CUENTA CON LA BRIGADA DE EDUCACIÓN AMBIENTAL Y",null,null,null,null,null,null,null,null,null,null,null,"605. SEÑOR(A) DIRECTOR(A), ¿LA BRIGADA DE EDUCACIÓN AMBIENTAL Y GESTIÓN DEL"]
[null,null,null,"GESTIÓN DE RIESGO DE DESASTRES?",null,null,null,null,null,null,null,null,null,null,null,"RIESGO DE DESASTRES CONFORMADA HA SIDO FORTALECIDO?"]
[]
[null,null,null,null,null,null,null,null,null,null,null,null,null,null,null,"Sí"]
[]
[null,null,null,"Sí","",null,null,null,"No  ",null," u       Pase a responsable del",null,null,null,null,null,null,null,"¿Quiénes la realizaron?"]
[null,null,null,null,null,null,null,null,null,null,null,"llenado de la cédula",null,null,null,null,null,null,"Marque con una “X”, una o más opciones"]
[]
[null,null,null,null,null,"Documento que lo aprueba",null,null,null,null,"Resolución",null,null,null,null,null,null,null,null,"El brigadista líder"]
[null,null,null,null,null,null,null,null,null,null,"Otro",null,null,null,null,null,null,null,null,"Directivo"]
[null,null,null,null,null,null,null,null,null,null,null,null,null,null,null,null,null,null,null,"Docentes"]
[null,null,null,null,null,"Número del Documento",null,null,null,"",null,null,null,null,null,null,null,null,null,"UGEL"]
[null,null,null,null,null,null,null,null,null,null,null,null,null,null,null,null,null,null,null,"DRE/GRE"]
[null,null,null,null,null,null,null,null,"Desde:",null,null,"Hasta:",null,null,null,null,null,null,null,"Gobierno local"]
[null,null,null,null,null,"Vigencia de la brigada",null,null,"DD/MM/AAAA",null,null,"DD/MM/AAAA",null,null,null,null,null,null,null,"Otro",""]
[null,null,null,null,null,null,null,null,"",null,null,""]
[null,null,null,null,null,null,null,null,null,null,null,null,null,null,"606. SEÑOR(A) DIRECTOR(A), INDIQUE USTED, ¿SI EN LOS DOS ÚLTIMOS AÑOS, LOS"]
[null,null,null,null,null,null,null,null,null,null,null,null,null,null,null,"INTEGRANTES DE LA BRIGADA DE EDUCACIÓN AMBIENTAL Y GESTIÓN DEL"]
[null,null,null,null,null,null,null,null,null,null,null,null,null,null,null,"RIESGO DE DESASTRES, HAN SIDO CAPACITADOS?"]
[]
[null,null,null,null,null,null,null,null,null,null,null,null,null,null,null,"Sí",null,null,"¿En qué temas han sido capacitados?"]
[null,null,"604. SEÑOR(A) DIRECTOR(A), LA BRIGADA DE EDUCACIÓN AMBIENTAL Y GESTIÓN DEL",null,null,null,null,null,null,null,null,null,null,null,null,null,null,null,"Marque con una “X”, una o más opciones"]
[null,null,null,"RIESGO DE DESASTRES CONFORMADA, ¿CUENTA CON UN PLAN DE ACCIÓN ELABORADO?"]
[null,null,null,null,null,null,null,null,null,null,null,null,null,null,null,null,null,null,null,"Cambio climático"]
[null,null,null,null,null,null,null,null,null,null,null,null,null,null,null,null,null,null,null,"Manejo de residuos sólidos"]
[null,null,null,"Sí",null,null,null,null,null,null,null,null,null,null,null,null,null,null,null,"Cuidado de los humedales"]
[null,null,null,null,null,null,null,null,null,null,null,null,null,null,null,null,null,null,null,"Diversidad biológica"]
[null,null,null,null,null,null,"Indique la fecha de la elaboración del plan de acción",null,null,null,null,null,null,null,null,null,null,null,null,"Primeros auxilios"]
[null,null,null,null,null,null,null,null,null,null,null,null,null,null,null,null,null,null,null,"Capacitación contra Incendios"]
[null,null,null,null,null,null,null,null,null,null,null,null,null,null,null,null,null,null,null,"Señalización y evacuación"]
[null,null,null,null,null,null,"Día","Mes","Año",null,null,null,null,null,null,null,null,null,null,"Seguridad y protección"]
[null,null,null,null,null,null,null,null,null,null,null,{"$f":"CONCATENATE(G65,\"/\",H65,\"/\",I65)","v":"//"},null,null,null,null,null,null,null,"Soporte Socioemocional y actividades lúdicas"]
[null,null,null,null,null,null,null,null,null,null,null,null,null,null,null,null,null,null,null,"Alimentación saludable"]
[null,null,null,null,null,null,null,null,null,null,null,null,null,null,null,null,null,null,null,"Transporte sostenible"]
[null,null,null,null,null,null,null,null,null,null,null,null,null,null,null,null,null,null,null,"Desertificación"]
[null,null,null,null,null,null,null,null,null,null,null,null,null,null,null,null,null,null,null,"Plásticos y microplásticos"]
[null,null,null,null,null,null,null,null,null,null,null,null,null,null,null,null,null,null,null,"Otro",""]
[null,null,null,"No  ",null,null,null,null,null,null,null,null,null,null,null,null,null,null,""]
[null,null,null,null,null,null,null,null,null,null,null,null,null,null,null,"No  ",null,null,"Indique, ¿cuál es el motivo?"]
[null,null,null,null,null,null,null,null,null,null,null,null,null,null,null,null,null,null,"Marque con una “X”, una opción"]
[null,null,null,null,"¿El plan de acción esta incorporado en el plan anual de trabajo?"]
[null,null,null,null,null,null,null,null,null,null,null,null,null,null,null,null,null,null,null,"No saben a quién solicitar apoyo para la capacitación"]
[null,null,null,null,"Sí",null,null,null,"No  ",null,null,null,null,null,null,null,null,null,null,"No cuentan con aliados especializados"]
[null,null,null,null,null,null,null,null,null,null,null,null,null,null,null,null,null,null,null,"Se suspendió por cruce de actividades"]
[null,null,null,null,null,null,null,null,null,null,null,null,null,null,null,null,null,null,null,"No se ha recibido invitación"]
[]
[]
[null,"DATOS DEL DIRECTOR(A) / RESPONSABLE DEL LLENADO DE LA CÉDULA"]
[]
[null,null,null,"NOMBRES Y APELLIDOS",null,null,null,null,"CARGO",null,null,"CORREO ELECTRÓNICO",null,null,null,null,null,null,null,"TELÉFONO"]
[]
[]
[]
[]
[]
[]
[]
["DIRECTOR(A)"]
["SUB DIRECTOR(A)"]
["DOCENTE"]
["COORDINADOR(A)"]
["ASESOR"]
["ADMINISTRATIVO"]
["ASISTENTE"]
["AUXILIAR"]
["SECRETARIA(O)"]
["ESTADÍSTICO"]
["ESPECIALISTA"]
["BIBLIOTECARIO"]
["CARE"]
["COMANDANTE PNP"]
["CONTADOR"]
["DAIP"]
["DIGITADOR(A)"]
["GERENTE"]
["JEFE ACADÉMICO"]
["JEFE ADMINISTRATIVO"]
["JEFE DE ÁREA"]
["JEFE DE LABORATORIO"]
["JEFE DE PERSONAL"]
["JEFE DE SEDE"]
["JEFE DE UNIDAD"]
["OFICINISTA"]
["OPERADOR DE SISTEMAS"]
["PERSONAL DE SERVICIO"]
["PROGRAMADOR"]
["PROMOTOR(A)"]
["PSICOLOGO"]
["REGISTRADOR(A)"]
["REPRESENTANTE LEGAL"]
["SOPORTE TECNOLOGICO"]
["TÉCNICO ADMINISTRATIVO"]
["TESORERO(A)"]
["TRABAJADOR SOCIAL"]
["TUTOR"]
["OTROS"]

{"sheet":"Enviar","index":7,"n_rows":9,"n_cols":4,"rows_kept":9,"cut":false,"hidden":false,"merged":[[0,1,0,4],[1,1,1,4]]}
[null,"CENSO EDUCATIVO 2025"]
[null,"MATRÍCULA, DOCENTES Y RECURSOS"]
[]
[]
[null,null,"Paso 1:","Realice el ENVÍO con su clave EOL."]
[]
[null,null,"Paso 2:","Una vez realizado el ENVÍO,  Revise su constancia de envio."]
[]
[null,null,"  ADVERTENCIA","ASEGÚRESE DE REGISTRAR TODA LA INFORMACIÓN DEL NIVEL INFORMANTE"]